[Event "Early-Titled-Tuesday-Blitz-May-07-2024"]
[Site "Chess.com"]
[Date "2024.05.07"]
[Round "4"]
[White "TitarovVasiliYouTube"]
[Black "NigiriSushies"]
[Result "1-0"]
[WhiteElo "2629"]
[BlackElo "2412"]
[TimeControl "180+1"]
[EndTime "8:44:06 PDT"]
[Termination "TitarovVasiliYouTube won by checkmate"]

1. c4 {[%clk 0:03:00.9]} 1... Nf6 {[%clk 0:02:58.7]} 2. Nc3 {[%clk 0:02:59.7]}
2... e6 {[%clk 0:02:59.1]} 3. d4 {[%clk 0:02:59.7]} 3... d5 {[%clk 0:03:00]} 4.
cxd5 {[%clk 0:03:00.6]} 4... exd5 {[%clk 0:03:00.9]} 5. Bg5 {[%clk 0:03:01.2]}
5... Nbd7 {[%clk 0:02:47.7]} 6. e3 {[%clk 0:02:59.5]} 6... c6 {[%clk 0:02:47.4]}
7. Bd3 {[%clk 0:02:58.3]} 7... h6 {[%clk 0:02:47.6]} 8. Bh4 {[%clk 0:02:58]}
8... Be7 {[%clk 0:02:42.2]} 9. Nf3 {[%clk 0:02:58.3]} 9... O-O {[%clk
0:02:42.1]} 10. O-O {[%clk 0:02:58.3]} 10... Ne4 {[%clk 0:02:39.2]} 11. Bg3
{[%clk 0:02:54]} 11... Ndf6 {[%clk 0:02:36.8]} 12. Rb1 {[%clk 0:02:50.7]} 12...
Re8 {[%clk 0:02:31.6]} 13. Qc2 {[%clk 0:02:50.3]} 13... Nxg3 {[%clk 0:02:29]}
14. hxg3 {[%clk 0:02:50.2]} 14... Bd6 {[%clk 0:02:28.4]} 15. b4 {[%clk
0:02:48.4]} 15... a6 {[%clk 0:02:23.8]} 16. a4 {[%clk 0:02:48.1]} 16... Bg4
{[%clk 0:02:23.7]} 17. b5 {[%clk 0:02:44.1]} 17... axb5 {[%clk 0:02:05.3]} 18.
axb5 {[%clk 0:02:45]} 18... Bxf3 {[%clk 0:02:01.9]} 19. gxf3 {[%clk 0:02:45.9]}
19... Qc8 {[%clk 0:02:01.9]} 20. bxc6 {[%clk 0:02:40.5]} 20... bxc6 {[%clk
0:01:44.2]} 21. Kg2 {[%clk 0:02:37.7]} 21... Ra3 {[%clk 0:01:42.2]} 22. Rb3
{[%clk 0:02:32.2]} 22... Rxb3 {[%clk 0:01:34.5]} 23. Qxb3 {[%clk 0:02:33.1]}
23... Qb8 {[%clk 0:01:27.1]} 24. Qa4 {[%clk 0:02:17.9]} 24... c5 {[%clk
0:01:23.8]} 25. Rb1 {[%clk 0:02:05.9]} 25... Qc8 {[%clk 0:01:18.5]} 26. Nb5
{[%clk 0:01:53.1]} 26... Bf8 {[%clk 0:01:09.5]} 27. dxc5 {[%clk 0:01:51.9]}
27... Qxc5 {[%clk 0:01:04.3]} 28. Nd4 {[%clk 0:01:50.7]} 28... Qc3 {[%clk
0:01:00.7]} 29. Qc2 {[%clk 0:01:29.7]} 29... Rc8 {[%clk 0:00:56.1]} 30. Rb7
{[%clk 0:01:09.5]} 30... g6 {[%clk 0:00:46.8]} 31. Bxg6 {[%clk 0:01:03.3]} 31...
Qxc2 {[%clk 0:00:46.5]} 32. Bxc2 {[%clk 0:01:03.9]} 32... Bc5 {[%clk 0:00:46.2]}
33. Nf5 {[%clk 0:00:59.5]} 33... Bf8 {[%clk 0:00:36.9]} 34. Ba4 {[%clk
0:00:46.3]} 34... Rc4 {[%clk 0:00:20.6]} 35. Bb3 {[%clk 0:00:40.1]} 35... Rc3
{[%clk 0:00:18.1]} 36. g4 {[%clk 0:00:35.9]} 36... Rc1 {[%clk 0:00:06.1]} 37. e4
{[%clk 0:00:30.8]} 37... dxe4 {[%clk 0:00:02.2]} 38. Rxf7 {[%clk 0:00:30.7]}
38... exf3+ {[%clk 0:00:02.3]} 39. Kg3 {[%clk 0:00:25]} 39... Ne4+ {[%clk
0:00:02.5]} 40. Kh2 {[%clk 0:00:24]} 40... Rc3 {[%clk 0:00:01.1]} 41. Rb7+
{[%clk 0:00:20.6]} 41... Rxb3 {[%clk 0:00:00.9]} 42. Rxb3 {[%clk 0:00:19.8]}
42... Nxf2 {[%clk 0:00:01.8]} 43. Kg3 {[%clk 0:00:18.6]} 43... Ne4+ {[%clk
0:00:02.5]} 44. Kh2 {[%clk 0:00:17.5]} 44... Ng5 {[%clk 0:00:03.4]} 45. Rd3
{[%clk 0:00:08.5]} 45... Kh7 {[%clk 0:00:03.5]} 46. Kg3 {[%clk 0:00:08.2]} 46...
Kg6 {[%clk 0:00:03.6]} 47. Nh4+ {[%clk 0:00:06.6]} 47... Kf6 {[%clk 0:00:03.6]}
48. Nxf3 {[%clk 0:00:07.5]} 48... Nxf3 {[%clk 0:00:04.1]} 49. Kxf3 {[%clk
0:00:08.4]} 49... Be7 {[%clk 0:00:03]} 50. Rd5 {[%clk 0:00:08.7]} 50... Kf7
{[%clk 0:00:03.2]} 51. Rh5 {[%clk 0:00:09.6]} 51... Bg5 {[%clk 0:00:03.7]} 52.
Ke4 {[%clk 0:00:10.5]} 52... Ke6 {[%clk 0:00:03.9]} 53. Rh3 {[%clk 0:00:09.9]}
53... Kf6 {[%clk 0:00:04]} 54. Rb3 {[%clk 0:00:10.2]} 54... Bc1 {[%clk
0:00:02.7]} 55. Rb6+ {[%clk 0:00:10.1]} 55... Kg5 {[%clk 0:00:02.5]} 56. Kf3
{[%clk 0:00:10.6]} 56... Bd2 {[%clk 0:00:01.8]} 57. Rb5+ {[%clk 0:00:10.9]}
57... Kg6 {[%clk 0:00:01.8]} 58. Rh5 {[%clk 0:00:11.8]} 58... Bg5 {[%clk
0:00:01.5]} 59. Rh1 {[%clk 0:00:10.8]} 59... Bd2 {[%clk 0:00:01.1]} 60. Rd1
{[%clk 0:00:08.8]} 60... Bg5 {[%clk 0:00:01.8]} 61. Rd6+ {[%clk 0:00:07.6]}
61... Kf7 {[%clk 0:00:02.7]} 62. Ke4 {[%clk 0:00:07.8]} 62... Kg7 {[%clk
0:00:03.2]} 63. Kf5 {[%clk 0:00:08.1]} 63... Kf7 {[%clk 0:00:03.7]} 64. Rd7+
{[%clk 0:00:07]} 64... Ke8 {[%clk 0:00:04.3]} 65. Rb7 {[%clk 0:00:07.1]} 65...
Kd8 {[%clk 0:00:04.1]} 66. Kg6 {[%clk 0:00:07.5]} 66... Ke8 {[%clk 0:00:04.3]}
67. Rh7 {[%clk 0:00:07.9]} 67... Kf8 {[%clk 0:00:04.9]} 68. Rxh6 {[%clk
0:00:08.3]} 68... Bxh6 {[%clk 0:00:05]} 69. Kxh6 {[%clk 0:00:09.2]} 69... Kf7
{[%clk 0:00:05.3]} 70. g5 {[%clk 0:00:08.4]} 70... Kg8 {[%clk 0:00:06.2]} 71.
Kg6 {[%clk 0:00:08.8]} 71... Kh8 {[%clk 0:00:07.1]} 72. Kf7 {[%clk 0:00:09.2]}
72... Kh7 {[%clk 0:00:06.9]} 73. g6+ {[%clk 0:00:10.1]} 73... Kh8 {[%clk
0:00:07.8]} 74. g7+ {[%clk 0:00:10.7]} 74... Kh7 {[%clk 0:00:08.7]} 75. g8=Q+
{[%clk 0:00:11.6]} 75... Kh6 {[%clk 0:00:09.6]} 76. Qg6# {[%clk 0:00:12.5]} 1-0

[Event "Early-Titled-Tuesday-Blitz-May-07-2024"]
[Site "Chess.com"]
[Date "2024.05.07"]
[Round "4"]
[White "Tsyhanchuk_Stanislav"]
[Black "aljado"]
[Result "0-1"]
[WhiteElo "2331"]
[BlackElo "2183"]
[TimeControl "180+1"]
[EndTime "8:44:08 PDT"]
[Termination "aljado won by checkmate"]

1. e4 {[%clk 0:03:00.9]} 1... c5 {[%clk 0:02:59.1]} 2. Nf3 {[%clk 0:03:00.5]}
2... e6 {[%clk 0:02:59.2]} 3. d4 {[%clk 0:02:59.6]} 3... cxd4 {[%clk 0:02:59.1]}
4. Nxd4 {[%clk 0:03:00.2]} 4... Bc5 {[%clk 0:02:58.9]} 5. Nc3 {[%clk 0:02:59.1]}
5... a6 {[%clk 0:02:56.2]} 6. Nb3 {[%clk 0:02:54]} 6... Bb6 {[%clk 0:02:54.4]}
7. Bf4 {[%clk 0:02:52.4]} 7... Ne7 {[%clk 0:02:50.5]} 8. Qg4 {[%clk 0:02:47.4]}
8... O-O {[%clk 0:02:49.1]} 9. O-O-O {[%clk 0:02:38.3]} 9... d5 {[%clk
0:02:45.7]} 10. e5 {[%clk 0:02:29.7]} 10... Nbc6 {[%clk 0:02:41]} 11. h4 {[%clk
0:02:26.6]} 11... f5 {[%clk 0:02:29.9]} 12. exf6 {[%clk 0:02:22.9]} 12... Rxf6
{[%clk 0:02:29]} 13. h5 {[%clk 0:02:18.3]} 13... e5 {[%clk 0:02:18.7]} 14. Qg5
{[%clk 0:02:02.5]} 14... Rxf4 {[%clk 0:02:09.6]} 15. h6 {[%clk 0:02:00.2]} 15...
Rg4 {[%clk 0:02:06.4]} 16. Qh5 {[%clk 0:01:51.3]} 16... Be6 {[%clk 0:01:54.5]}
17. hxg7 {[%clk 0:01:47]} 17... Rxg7 {[%clk 0:01:53.8]} 18. Rd3 {[%clk
0:01:42.3]} 18... Bg4 {[%clk 0:01:38]} 19. Qh6 {[%clk 0:01:37.4]} 19... Nf5
{[%clk 0:01:30.6]} 20. Qe6+ {[%clk 0:01:33.3]} 20... Kh8 {[%clk 0:01:24.3]} 21.
Nxd5 {[%clk 0:01:23.5]} 21... Ncd4 {[%clk 0:01:19]} 22. Qxe5 {[%clk 0:01:17.2]}
22... Qc8 {[%clk 0:00:51.1]} 23. c3 {[%clk 0:01:09]} 23... Nxb3+ {[%clk
0:00:48.9]} 24. axb3 {[%clk 0:01:06.7]} 24... Qc5 {[%clk 0:00:41.2]} 25. Qf6
{[%clk 0:00:59]} 25... Qxf2 {[%clk 0:00:34.9]} 26. Qxb6 {[%clk 0:00:41.6]} 26...
Qe1+ {[%clk 0:00:23.5]} 27. Kc2 {[%clk 0:00:37.7]} 27... Ng3 {[%clk 0:00:20]}
28. Qe3 {[%clk 0:00:32.1]} 28... Qxe3 {[%clk 0:00:17.4]} 29. Rxe3 {[%clk
0:00:31.6]} 29... Nxh1 {[%clk 0:00:17.3]} 30. Bc4 {[%clk 0:00:26.9]} 30... Nf2
{[%clk 0:00:16]} 31. Nf4 {[%clk 0:00:22.1]} 31... Bf5+ {[%clk 0:00:15.5]} 32.
Kc1 {[%clk 0:00:20.6]} 32... Ne4 {[%clk 0:00:13.4]} 33. Bd3 {[%clk 0:00:19.9]}
33... Nd6 {[%clk 0:00:12.5]} 34. Bxf5 {[%clk 0:00:18.7]} 34... Nxf5 {[%clk
0:00:12.3]} 35. Re5 {[%clk 0:00:18.1]} 35... Nh4 {[%clk 0:00:09.9]} 36. Re2
{[%clk 0:00:16.9]} 36... Rf8 {[%clk 0:00:06.3]} 37. Ne6 {[%clk 0:00:16.1]} 37...
Rf1+ {[%clk 0:00:05.6]} 38. Kc2 {[%clk 0:00:16.6]} 38... Re7 {[%clk 0:00:04.8]}
39. Nd4 {[%clk 0:00:14.1]} 39... Rxe2+ {[%clk 0:00:03]} 40. Nxe2 {[%clk
0:00:15]} 40... Rf2 {[%clk 0:00:03.1]} 41. Kd2 {[%clk 0:00:14.9]} 41... Rxg2
{[%clk 0:00:03.4]} 42. Kd3 {[%clk 0:00:14.8]} 42... Rxe2 {[%clk 0:00:03.3]} 43.
Kxe2 {[%clk 0:00:14.7]} 43... Ng6 {[%clk 0:00:04]} 44. Kf3 {[%clk 0:00:14.3]}
44... Kg7 {[%clk 0:00:04.6]} 45. c4 {[%clk 0:00:13.7]} 45... Kf6 {[%clk
0:00:04.9]} 46. b4 {[%clk 0:00:12.8]} 46... Ke5 {[%clk 0:00:05.3]} 47. Ke3
{[%clk 0:00:12.3]} 47... h5 {[%clk 0:00:03.7]} 48. Kf3 {[%clk 0:00:08.3]} 48...
h4 {[%clk 0:00:04.6]} 49. Kg2 {[%clk 0:00:07.9]} 49... Nf4+ {[%clk 0:00:04.9]}
50. Kf3 {[%clk 0:00:06.7]} 50... h3 {[%clk 0:00:05.8]} 51. Kg3 {[%clk
0:00:07.1]} 51... Kd4 {[%clk 0:00:04.6]} 52. b3 {[%clk 0:00:07.6]} 52... Kc3
{[%clk 0:00:03.8]} 53. Kxf4 {[%clk 0:00:07.8]} 53... h2 {[%clk 0:00:02.8]} 54.
Ke4 {[%clk 0:00:07.2]} 54... h1=Q+ {[%clk 0:00:03.6]} 55. Ke3 {[%clk 0:00:07]}
55... Qc6 {[%clk 0:00:03.4]} 56. b5 {[%clk 0:00:06.6]} 56... Qc5+ {[%clk
0:00:02.8]} 57. Ke2 {[%clk 0:00:06.2]} 57... Kxb3 {[%clk 0:00:03.5]} 58. Kd3
{[%clk 0:00:05.4]} 58... Kb4 {[%clk 0:00:03.4]} 59. Kd2 {[%clk 0:00:06.3]} 59...
axb5 {[%clk 0:00:03.3]} 60. cxb5 {[%clk 0:00:04.3]} 60... Qxb5 {[%clk
0:00:03.7]} 61. Kc2 {[%clk 0:00:04.6]} 61... Qe5 {[%clk 0:00:03.9]} 62. Kd2
{[%clk 0:00:03.9]} 62... Qg3 {[%clk 0:00:03.6]} 63. Ke2 {[%clk 0:00:03.3]} 63...
Kc4 {[%clk 0:00:04.1]} 64. Kd2 {[%clk 0:00:03.3]} 64... Qf2+ {[%clk 0:00:04.3]}
65. Kc1 {[%clk 0:00:02.7]} 65... Kc3 {[%clk 0:00:04.1]} 66. Kd1 {[%clk
0:00:01.6]} 66... Qd2# {[%clk 0:00:03.8]} 0-1

[Event "Early-Titled-Tuesday-Blitz-May-07-2024"]
[Site "Chess.com"]
[Date "2024.05.07"]
[Round "4"]
[White "viktorskliarov"]
[Black "GMKrikor"]
[Result "1/2-1/2"]
[WhiteElo "2644"]
[BlackElo "2849"]
[TimeControl "180+1"]
[EndTime "8:44:11 PDT"]
[Termination "Game drawn - insufficient material"]

1. e4 {[%clk 0:03:00.9]} 1... c5 {[%clk 0:03:00]} 2. Nf3 {[%clk 0:03:00.9]} 2...
Nc6 {[%clk 0:02:59]} 3. Bb5 {[%clk 0:03:00.4]} 3... Nf6 {[%clk 0:02:56.7]} 4.
Bxc6 {[%clk 0:02:59.2]} 4... dxc6 {[%clk 0:02:57.6]} 5. d3 {[%clk 0:02:59.6]}
5... Qc7 {[%clk 0:02:56.8]} 6. h3 {[%clk 0:02:59]} 6... e5 {[%clk 0:02:56.4]} 7.
Be3 {[%clk 0:02:57.2]} 7... Be7 {[%clk 0:02:52.2]} 8. Nbd2 {[%clk 0:02:57.3]}
8... O-O {[%clk 0:02:39.7]} 9. Nc4 {[%clk 0:02:56.5]} 9... Nd7 {[%clk
0:02:40.1]} 10. a4 {[%clk 0:02:54.4]} 10... b5 {[%clk 0:02:39]} 11. Ncd2 {[%clk
0:02:45.4]} 11... Re8 {[%clk 0:02:29.6]} 12. Nb3 {[%clk 0:02:27.3]} 12... c4
{[%clk 0:02:23.4]} 13. dxc4 {[%clk 0:02:26.8]} 13... bxc4 {[%clk 0:02:24.3]} 14.
Nbd2 {[%clk 0:02:27]} 14... Ba6 {[%clk 0:02:12.9]} 15. Qe2 {[%clk 0:01:18.2]}
15... Rab8 {[%clk 0:02:06.6]} 16. Nxc4 {[%clk 0:00:39.8]} 16... Rxb2 {[%clk
0:01:59.5]} 17. Nxb2 {[%clk 0:00:26.8]} 17... Bxe2 {[%clk 0:01:59.1]} 18. Kxe2
{[%clk 0:00:27.7]} 18... Bc5 {[%clk 0:01:52.3]} 19. Nc4 {[%clk 0:00:23.1]} 19...
Bxe3 {[%clk 0:01:51.9]} 20. Nxe3 {[%clk 0:00:24]} 20... Nc5 {[%clk 0:01:52.4]}
21. Nd2 {[%clk 0:00:21.7]} 21... Rd8 {[%clk 0:01:51.4]} 22. Rhb1 {[%clk
0:00:18.6]} 22... Qa5 {[%clk 0:01:38.1]} 23. Ndc4 {[%clk 0:00:14.3]} 23... Qa6
{[%clk 0:01:38.1]} 24. Kf3 {[%clk 0:00:12.3]} 24... f6 {[%clk 0:01:26]} 25. Rd1
{[%clk 0:00:11.3]} 25... Rd4 {[%clk 0:01:21.7]} 26. Nd6 {[%clk 0:00:06.2]} 26...
Rxa4 {[%clk 0:01:14]} 27. Rxa4 {[%clk 0:00:05.4]} 27... Qxa4 {[%clk 0:01:14.2]}
28. Nef5 {[%clk 0:00:05.4]} 28... g6 {[%clk 0:01:06.8]} 29. Nh6+ {[%clk
0:00:01.7]} 29... Kg7 {[%clk 0:01:06.1]} 30. Ng4 {[%clk 0:00:02.6]} 30... Qxc2
{[%clk 0:00:58.9]} 31. Ne3 {[%clk 0:00:03]} 31... Qa4 {[%clk 0:00:52.3]} 32.
Ndc4 {[%clk 0:00:03.4]} 32... Ne6 {[%clk 0:00:35.3]} 33. Rd7+ {[%clk 0:00:03]}
33... Kf8 {[%clk 0:00:36]} 34. Rb7 {[%clk 0:00:02.6]} 34... Qa6 {[%clk
0:00:19.4]} 35. Nd6 {[%clk 0:00:02.4]} 35... Ng5+ {[%clk 0:00:16.8]} 36. Kg4
{[%clk 0:00:02.2]} 36... h5+ {[%clk 0:00:16.1]} 37. Kh4 {[%clk 0:00:02.2]} 37...
Nxe4 {[%clk 0:00:12.4]} 38. Rf7+ {[%clk 0:00:01.4]} 38... Kg8 {[%clk 0:00:12.7]}
39. Nec4 {[%clk 0:00:01.8]} 39... Nxd6 {[%clk 0:00:08.7]} 40. Nxd6 {[%clk
0:00:01.8]} 40... Qd3 {[%clk 0:00:07.6]} 41. Rxf6 {[%clk 0:00:01.8]} 41... Kh7
{[%clk 0:00:04.3]} 42. g4 {[%clk 0:00:01.8]} 42... hxg4 {[%clk 0:00:04]} 43.
hxg4 {[%clk 0:00:02.7]} 43... Qd2 {[%clk 0:00:04]} 44. Rf7+ {[%clk 0:00:02.9]}
44... Kg8 {[%clk 0:00:03.9]} 45. Rf6 {[%clk 0:00:03.5]} 45... Kg7 {[%clk
0:00:03.1]} 46. g5 {[%clk 0:00:03.1]} 46... Qd1 {[%clk 0:00:02.5]} 47. Ne8+
{[%clk 0:00:03]} 47... Kg8 {[%clk 0:00:03.1]} 48. Nd6 {[%clk 0:00:03.4]} 48...
Kh7 {[%clk 0:00:02.9]} 49. Rf7+ {[%clk 0:00:03.6]} 49... Kh8 {[%clk 0:00:03.6]}
50. f3 {[%clk 0:00:03.9]} 50... Qh1+ {[%clk 0:00:03.2]} 51. Kg3 {[%clk
0:00:03.9]} 51... Qg1+ {[%clk 0:00:03.9]} 52. Kh4 {[%clk 0:00:04.3]} 52... Qh2+
{[%clk 0:00:04.1]} 53. Kg4 {[%clk 0:00:04.8]} 53... Qg2+ {[%clk 0:00:04.8]} 54.
Kh4 {[%clk 0:00:05.4]} 54... Qh2+ {[%clk 0:00:04.8]} 55. Kg4 {[%clk 0:00:06]}
55... Qc2 {[%clk 0:00:05.5]} 56. Rf8+ {[%clk 0:00:06]} 56... Kg7 {[%clk
0:00:06.1]} 57. Rf7+ {[%clk 0:00:06.7]} 57... Kg8 {[%clk 0:00:06.7]} 58. Rf6
{[%clk 0:00:07.2]} 58... a5 {[%clk 0:00:07.3]} 59. Ne4 {[%clk 0:00:06.2]} 59...
Kg7 {[%clk 0:00:05.7]} 60. Nd6 {[%clk 0:00:06.3]} 60... a4 {[%clk 0:00:05.3]}
61. Rf7+ {[%clk 0:00:06.9]} 61... Kg8 {[%clk 0:00:06]} 62. Re7 {[%clk 0:00:07]}
62... Qb3 {[%clk 0:00:04.4]} 63. Re8+ {[%clk 0:00:07.3]} 63... Kg7 {[%clk
0:00:04.7]} 64. Re7+ {[%clk 0:00:08]} 64... Kh8 {[%clk 0:00:05.3]} 65. Re8+
{[%clk 0:00:08.6]} 65... Kh7 {[%clk 0:00:05.5]} 66. Re7+ {[%clk 0:00:09.1]}
66... Kg8 {[%clk 0:00:06.1]} 67. Re8+ {[%clk 0:00:09.6]} 67... Kg7 {[%clk
0:00:06.8]} 68. Re7+ {[%clk 0:00:10.2]} 68... Kh8 {[%clk 0:00:04.6]} 69. Re8+
{[%clk 0:00:10.6]} 69... Qg8 {[%clk 0:00:05.4]} 70. Rxg8+ {[%clk 0:00:10.7]}
70... Kxg8 {[%clk 0:00:06.3]} 71. Nc4 {[%clk 0:00:11.3]} 71... Kf8 {[%clk
0:00:05.1]} 72. f4 {[%clk 0:00:11.1]} 72... exf4 {[%clk 0:00:04.7]} 73. Kxf4
{[%clk 0:00:11.5]} 73... Ke7 {[%clk 0:00:05.6]} 74. Ke5 {[%clk 0:00:12]} 74...
c5 {[%clk 0:00:02.3]} 75. Kd5 {[%clk 0:00:12.2]} 75... Kd7 {[%clk 0:00:03]} 76.
Kxc5 {[%clk 0:00:11.4]} 76... Ke6 {[%clk 0:00:03.6]} 77. Kb4 {[%clk 0:00:11.9]}
77... Kf5 {[%clk 0:00:04.2]} 78. Kxa4 {[%clk 0:00:12.3]} 78... Kxg5 {[%clk
0:00:04.8]} 79. Ne5 {[%clk 0:00:12.7]} 79... Kf5 {[%clk 0:00:04.5]} 80. Nxg6
{[%clk 0:00:13.6]} 1/2-1/2

[Event "Early-Titled-Tuesday-Blitz-May-07-2024"]
[Site "Chess.com"]
[Date "2024.05.07"]
[Round "4"]
[White "GiorgianBarbosa"]
[Black "vaishali2001"]
[Result "1/2-1/2"]
[WhiteElo "2500"]
[BlackElo "2691"]
[TimeControl "180+1"]
[EndTime "8:44:13 PDT"]
[Termination "Game drawn by agreement"]

1. c4 {[%clk 0:03:00.5]} 1... Nf6 {[%clk 0:02:59.2]} 2. d4 {[%clk 0:03:00.3]}
2... g6 {[%clk 0:02:59.5]} 3. Nc3 {[%clk 0:03:00.1]} 3... Bg7 {[%clk 0:02:59.8]}
4. e4 {[%clk 0:03:00.5]} 4... d6 {[%clk 0:02:59.5]} 5. Nf3 {[%clk 0:02:59.7]}
5... O-O {[%clk 0:02:59.9]} 6. Be2 {[%clk 0:02:59.5]} 6... e5 {[%clk 0:03:00.5]}
7. O-O {[%clk 0:02:59.7]} 7... exd4 {[%clk 0:03:00.7]} 8. Nxd4 {[%clk
0:02:59.5]} 8... Re8 {[%clk 0:03:01.2]} 9. f3 {[%clk 0:02:58]} 9... c6 {[%clk
0:03:01.6]} 10. Nb3 {[%clk 0:02:38.8]} 10... a5 {[%clk 0:02:49.9]} 11. Bf4
{[%clk 0:02:31.1]} 11... Qb6+ {[%clk 0:02:18.6]} 12. Qd4 {[%clk 0:02:06.7]}
12... Qxd4+ {[%clk 0:02:13.5]} 13. Nxd4 {[%clk 0:02:07.4]} 13... Nxe4 {[%clk
0:02:14]} 14. Nxe4 {[%clk 0:01:58.3]} 14... Bxd4+ {[%clk 0:02:12.4]} 15. Kh1
{[%clk 0:01:59]} 15... d5 {[%clk 0:01:58.7]} 16. cxd5 {[%clk 0:01:52]} 16...
cxd5 {[%clk 0:01:59.6]} 17. Rad1 {[%clk 0:01:45.2]} 17... dxe4 {[%clk
0:01:53.3]} 18. Rxd4 {[%clk 0:01:45]} 18... exf3 {[%clk 0:01:52.3]} 19. Bxf3
{[%clk 0:01:45.9]} 19... Nc6 {[%clk 0:01:52.6]} 20. Rd6 {[%clk 0:01:37.5]} 20...
Be6 {[%clk 0:01:36.6]} 21. Rxc6 {[%clk 0:01:18]} 21... bxc6 {[%clk 0:01:37.5]}
22. Bxc6 {[%clk 0:01:18.9]} 22... Bxa2 {[%clk 0:01:32.3]} 23. Bxa8 {[%clk
0:01:15.6]} 23... Rxa8 {[%clk 0:01:32]} 24. Be5 {[%clk 0:01:15.4]} 24... Re8
{[%clk 0:01:09.9]} 25. Re1 {[%clk 0:01:06]} 25... a4 {[%clk 0:00:59.7]} 26. Bc3
{[%clk 0:01:04.5]} 26... Rd8 {[%clk 0:00:53.7]} 27. Bf6 {[%clk 0:00:58.1]} 27...
Rc8 {[%clk 0:00:53.1]} 28. Rd1 {[%clk 0:00:55.4]} 28... Kf8 {[%clk 0:00:35.4]}
29. Rd8+ {[%clk 0:00:53.9]} 29... Rxd8 {[%clk 0:00:34.4]} 30. Bxd8 {[%clk
0:00:54.8]} 30... Ke8 {[%clk 0:00:35.3]} 31. Ba5 {[%clk 0:00:54.1]} 31... Kd7
{[%clk 0:00:36.2]} 32. Bb4 {[%clk 0:00:54.3]} 32... Kc6 {[%clk 0:00:34.4]} 33.
Kg1 {[%clk 0:00:54.4]} 33... Kb5 {[%clk 0:00:34.2]} 34. Ba3 {[%clk 0:00:53.8]}
34... Kc4 {[%clk 0:00:34.9]} 35. Kf2 {[%clk 0:00:54.3]} 35... Kd3 {[%clk
0:00:35.6]} 36. g3 {[%clk 0:00:54.5]} 36... Bd5 {[%clk 0:00:35.3]} 37. h4 {[%clk
0:00:54.4]} 37... Ke4 {[%clk 0:00:29.8]} 38. Bf8 {[%clk 0:00:52.4]} 38... Kf5
{[%clk 0:00:29.5]} 39. Bb4 {[%clk 0:00:51.2]} 39... Kg4 {[%clk 0:00:30.4]} 40.
Bd2 {[%clk 0:00:49.1]} 40... Kf5 {[%clk 0:00:27.7]} 41. Bc3 {[%clk 0:00:47.4]}
41... f6 {[%clk 0:00:28.6]} 42. Bd4 {[%clk 0:00:46.2]} 42... g5 {[%clk
0:00:25.4]} 43. hxg5 {[%clk 0:00:33.7]} 43... fxg5 {[%clk 0:00:26.3]} 44. Kg1
{[%clk 0:00:31.2]} 44... Ke4 {[%clk 0:00:20.2]} 45. Bf6 {[%clk 0:00:30.2]} 45...
Kf3 {[%clk 0:00:16.5]} 46. Kh2 {[%clk 0:00:30.3]} 46... Kg4 {[%clk 0:00:16.5]}
47. Bh8 {[%clk 0:00:30]} 47... h6 {[%clk 0:00:16.5]} 48. Bc3 {[%clk 0:00:30.5]}
48... h5 {[%clk 0:00:17.4]} 49. Bg7 {[%clk 0:00:30.6]} 49... Kf5 {[%clk
0:00:18.3]} 50. Bh8 {[%clk 0:00:30.9]} 50... Kg6 {[%clk 0:00:19.1]} 51. Bc3
{[%clk 0:00:31.3]} 51... Kh6 {[%clk 0:00:19.4]} 52. Bd4 {[%clk 0:00:31.2]} 52...
Kg6 {[%clk 0:00:19.6]} 53. Bc3 {[%clk 0:00:31.7]} 53... Kf7 {[%clk 0:00:20.2]}
54. Bd4 {[%clk 0:00:32.1]} 54... Ke6 {[%clk 0:00:20.6]} 55. Bc3 {[%clk
0:00:32.6]} 55... Bf3 {[%clk 0:00:20.2]} 56. Bh8 {[%clk 0:00:32.1]} 56... Kf5
{[%clk 0:00:18.2]} 57. Bc3 {[%clk 0:00:32.4]} 57... Be4 {[%clk 0:00:17.7]} 58.
Bh8 {[%clk 0:00:32.5]} 58... Kg4 {[%clk 0:00:16.7]} 59. Bc3 {[%clk 0:00:32.5]}
59... Kf3 {[%clk 0:00:17.1]} 60. Bf6 {[%clk 0:00:32.4]} 60... Kg4 {[%clk
0:00:15.2]} 61. Bh8 {[%clk 0:00:32.5]} 61... Kf3 {[%clk 0:00:15.1]} 62. Bf6
{[%clk 0:00:32.7]} 62... g4 {[%clk 0:00:15.8]} 63. Bh4 {[%clk 0:00:31.5]} 63...
Kf2 {[%clk 0:00:15.1]} 64. Bd8 {[%clk 0:00:30.8]} 64... Ke3 {[%clk 0:00:15.3]}
65. Bg5+ {[%clk 0:00:30.6]} 65... Kd3 {[%clk 0:00:14.6]} 66. Bf6 {[%clk
0:00:31.1]} 66... Kc2 {[%clk 0:00:14.9]} 67. Kg1 {[%clk 0:00:30.6]} 67... Kd3
{[%clk 0:00:14.2]} 68. Kf2 {[%clk 0:00:31.1]} 68... Bf3 {[%clk 0:00:13.8]} 69.
Bh4 {[%clk 0:00:30.3]} 69... Kc4 {[%clk 0:00:14.1]} 70. Bf6 {[%clk 0:00:30.7]}
70... Kd5 {[%clk 0:00:14.5]} 71. Bh8 {[%clk 0:00:30.3]} 71... Kc5 {[%clk
0:00:15.4]} 72. Bf6 {[%clk 0:00:30]} 72... Kc4 {[%clk 0:00:16.3]} 73. Bh8 {[%clk
0:00:30.3]} 73... Kb3 {[%clk 0:00:17.2]} 74. Bf6 {[%clk 0:00:30.3]} 74... Kc2
{[%clk 0:00:18.1]} 75. Bh8 {[%clk 0:00:30.5]} 75... Kb1 {[%clk 0:00:19]} 76. Bg7
{[%clk 0:00:29.9]} 76... Ka2 {[%clk 0:00:19.3]} 77. Bf6 {[%clk 0:00:30.3]} 77...
Kb3 {[%clk 0:00:15.6]} 78. Bh8 {[%clk 0:00:30.5]} 78... Be4 {[%clk 0:00:15.9]}
79. Bf6 {[%clk 0:00:30.6]} 79... Bb7 {[%clk 0:00:16.4]} 80. Bh8 {[%clk
0:00:30.7]} 80... a3 {[%clk 0:00:17.3]} 81. bxa3 {[%clk 0:00:30.6]} 81... Kxa3
{[%clk 0:00:18.2]} 82. Bf6 {[%clk 0:00:30.8]} 82... Kb3 {[%clk 0:00:19.1]} 83.
Bh4 {[%clk 0:00:31.3]} 83... Kc4 {[%clk 0:00:20]} 84. Ke3 {[%clk 0:00:31.6]}
84... Kd5 {[%clk 0:00:20.9]} 85. Kf4 {[%clk 0:00:32.5]} 85... Ke6 {[%clk
0:00:20.2]} 86. Kg5 {[%clk 0:00:33.4]} 86... Bf3 {[%clk 0:00:20.7]} 87. Kf4
{[%clk 0:00:34.3]} 87... Kf7 {[%clk 0:00:20.7]} 88. Ke3 {[%clk 0:00:35.1]} 88...
Kg6 {[%clk 0:00:21.6]} 89. Kf4 {[%clk 0:00:35.9]} 1/2-1/2